Workbook

Sheet 翻译
A1: 序号 | B1: 考生编号 | C1: 姓名 | D1: 笔试成绩 | E1: 面试成绩 | F1: 复试总成绩百分制 | G1: 复试成绩百分制*40% | H1: 初试成绩 | I1: 初试成绩百分制 | J1: 初试成绩百分制*60% | K1: 总成绩 | L1: 备注
A2: 1 | B2: 114140113102074 | C2: 王梦雨 | D2: 85.0 | E2: 80.0 | F2: =D2*40%+E2*60% -> 82.0 | G2: =F2*40% -> 32.8 | H2: 408 | I2: =H2/5 -> 81.6 | J2: =I2*60% -> 49.0 | K2: =G2+J2 -> 81.8
A3: 2 | B3: 114140112421832 | C3: 韩月萌 | D3: 82.0 | E3: 88.0 | F3: 85.6 | G3: 34.2 | H3: 393 | I3: 78.6 | J3: 47.2 | K3: 81.4
A4: 3 | B4: 114140113072028 | C4: 王海苗 | D4: 80.0 | E4: 79.2 | F4: 79.5 | G4: 31.8 | H4: 413 | I4: 82.6 | J4: 49.6 | K4: 81.4
A5: 4 | B5: 114140142414196 | C5: 杨迪 | D5: 82.0 | E5: 81.8 | F5: 81.9 | G5: 32.8 | H5: 403 | I5: 80.6 | J5: 48.4 | K5: 81.1
A6: 5 | B6: 114140137143652 | C6: 杨伟伟 | D6: 86.0 | E6: 80.0 | F6: 82.4 | G6: 33.0 | H6: 401 | I6: 80.2 | J6: 48.1 | K6: 81.1
A7: 6 | B7: 114140137093570 | C7: 刘文静 | D7: 91.0 | E7: 85.8 | F7: 87.9 | G7: 35.2 | H7: 382 | I7: 76.4 | J7: 45.8 | K7: 81.0
A8: 7 | B8: 114140121432651 | C8: 马晓婷 | D8: 74.0 | E8: 85.6 | F8: 81.0 | G8: 32.4 | H8: 394 | I8: 78.8 | J8: 47.3 | K8: 79.7
A9: 8 | B9: 114140114212366 | C9: 白文姣 | D9: 77.0 | E9: 74.6 | F9: 75.6 | G9: 30.2 | H9: 410 | I9: 82.0 | J9: 49.2 | K9: 79.4
A10: 9 | B10: 114140137033328 | C10: 许晓雪 | D10: 80.0 | E10: 79.2 | F10: 79.5 | G10: 31.8 | H10: 396 | I10: 79.2 | J10: 47.5 | K10: 79.3
A11: 10 | B11: 114140111641496 | C11: 张君 | D11: 84.0 | E11: 83.4 | F11: 83.6 | G11: 33.5 | H11: 376 | I11: 75.2 | J11: 45.1 | K11: 78.6
A12: 11 | B12: 114140113142134 | C12: 马洪玲 | D12: 71.0 | E12: 83.4 | F12: 78.4 | G12: 31.4 | H12: 393 | I12: 78.6 | J12: 47.2 | K12: 78.5
A13: 12 | B13: 114140137093571 | C13: 杨晓笛 | D13: 78.0 | E13: 73.6 | F13: 75.4 | G13: 30.1 | H13: 403 | I13: 80.6 | J13: 48.4 | K13: 78.5
A14: 13 | B14: 114140151504494 | C14: 何丹妮 | D14: 78.0 | E14: 78.8 | F14: 78.5 | G14: 31.4 | H14: 391 | I14: 78.2 | J14: 46.9 | K14: 78.3
A15: 14 | B15: 114140111641686 | C15: 高欢 | D15: 86.0 | E15: 79.2 | F15: 81.9 | G15: 32.8 | H15: 378 | I15: 75.6 | J15: 45.4 | K15: 78.1
A16: 15 | B16: 114140111641501 | C16: 董心怡 | F16: 76.0 | G16: 30.4 | H16: 397 | I16: 79.4 | J16: 47.6 | K16: 78.0 | L16: 参加我院招生宣传，根据协议直接预录取
A17: 16 | B17: 114140137033329 | C17: 展桐 | D17: 80.0 | E17: 81.0 | F17: =D17*40%+E17*60% -> 80.6 | G17: 32.2 | H17: 381 | I17: 76.2 | J17: 45.7 | K17: 78.0
A18: 17 | B18: 114140137073477 | C18: 刘永丽 | D18: 84.0 | E18: 75.2 | F18: 78.7 | G18: 31.5 | H18: 385 | I18: 77.0 | J18: 46.2 | K18: 77.7
A19: 18 | B19: 114140151064339 | C19: 杨昕 | D19: 88.0 | E19: 83.8 | F19: 85.5 | G19: 34.2 | H19: 362 | I19: 72.4 | J19: 43.4 | K19: 77.6
A20: 19 | B20: 114140161404779 | C20: 马骄 | D20: 77.0 | E20: 81.6 | F20: 79.8 | G20: 31.9 | H20: 381 | I20: 76.2 | J20: 45.7 | K20: 77.6
A21: 20 | B21: 114140123062719 | C21: 马佳静 | D21: 74.0 | E21: 77.4 | F21: 76.0 | G21: 30.4 | H21: 390 | I21: 78.0 | J21: 46.8 | K21: 77.2
A22: 21 | B22: 114140151094353 | C22: 王寅菡 | D22: 73.0 | E22: 84.0 | F22: 79.6 | G22: 31.8 | H22: 378 | I22: 75.6 | J22: 45.4 | K22: 77.2
A23: 22 | B23: 114140161144738 | C23: 吴松双 | D23: 80.0 | E23: 79.4 | F23: 79.6 | G23: 31.9 | H23: 377 | I23: 75.4 | J23: 45.2 | K23: 77.1
A24: 23 | B24: 114140162024830 | C24: 包晶 | D24: 72.0 | E24: 76 | F24: 74.4 | G24: 29.8 | H24: 394 | I24: 78.8 | J24: 47.3 | K24: 77.0
A25: 24 | B25: 114140142114037 | C25: 杨奕 | D25: 80.0 | E25: 84.2 | F25: 82.5 | G25: 33.0 | H25: 366 | I25: 73.2 | J25: 43.9 | K25: 76.9
A26: 25 | B26: 114140142204160 | C26: 陈思源 | D26: 75.0 | E26: 78.0 | F26: 76.8 | G26: 30.7 | H26: 383 | I26: 76.6 | J26: 46.0 | K26: 76.7
A27: 26 | B27: 114140112331821 | C27: 石情 | D27: 60.0 | E27: 80.4 | F27: 72.2 | G27: 28.9 | H27: 397 | I27: 79.4 | J27: 47.6 | K27: 76.5
A28: 27 | B28: 114140111641495 | C28: 何佼阳 | F28: 79.0 | G28: 31.6 | H28: 374 | I28: 74.8 | J28: 44.9 | K28: 76.5 | L28: 参加我院招生宣传，根据协议直接预录取
A29: 28 | B29: 114140111640962 | C29: 宋梦娥 | D29: 83.0 | E29: 84.2 | F29: =D29*40%+E29*60% -> 83.7 | G29: 33.5 | H29: 355 | I29: 71.0 | J29: 42.6 | K29: 76.1
A30: 29 | B30: 114140113102076 | C30: 左思雨 | D30: 74.0 | E30: 82.6 | F30: 79.2 | G30: 31.7 | H30: 370 | I30: 74.0 | J30: 44.4 | K30: 76.1
A31: 30 | B31: 114140111641682 | C31: 杨雨晴 | D31: 72.0 | E31: 80.2 | F31: 76.9 | G31: 30.8 | H31: 375 | I31: 75.0 | J31: 45.0 | K31: 75.8
A32: 31 | B32: 114140111641505 | C32: 杨英娟 | D32: 67.0 | E32: 81.2 | F32: 75.5 | G32: 30.2 | H32: 379 | I32: 75.8 | J32: 45.5 | K32: 75.7
A33: 32 | B33: 114140165065105 | C33: 马甜甜 | D33: 71.0 | E33: 76.0 | F33: 74.0 | G33: 29.6 | H33: 384 | I33: 76.8 | J33: 46.1 | K33: 75.7
A34: 33 | B34: 114140114122315 | C34: 杨璐 | D34: 73.0 | E34: 67.6 | F34: 69.8 | G34: =F34*40% -> 27.9 | H34: 398 | I34: =H34/5 -> 79.6 | J34: =I34*60% -> 47.8 | K34: =G34+J34 -> 75.7
A35: 34 | B35: 114140141704026 | C35: 刘言希 | D35: 71.0 | E35: 83.2 | F35: 78.3 | G35: 31.3 | H35: 369 | I35: 73.8 | J35: 44.3 | K35: 75.6
A36: 35 | B36: 114140111641493 | C36: 王炳杰 | D36: 78.0 | E36: 73.4 | F36: 75.2 | G36: 30.1 | H36: 379 | I36: 75.8 | J36: 45.5 | K36: 75.6
A37: 36 | B37: 114140113122125 | C37: 李紫荆 | D37: 73.0 | E37: 77.8 | F37: 75.9 | G37: 30.4 | H37: 374 | I37: 74.8 | J37: 44.9 | K37: 75.2
A38: 37 | B38: 114140111641500 | C38: 董帅 | F38: 74.0 | G38: 29.6 | H38: 380 | I38: 76.0 | J38: 45.6 | K38: 75.2 | L38: 参加我院招生宣传，根据协议直接预录取
A39: 38 | B39: 114140123102726 | C39: 马欣宇 | D39: 62.0 | E39: 82.6 | F39: =D39*40%+E39*60% -> 74.4 | G39: 29.7 | H39: 378 | I39: 75.6 | J39: 45.4 | K39: 75.1
A40: 39 | B40: 114140111641498 | C40: 李静维 | F40: 76.0 | G40: 30.4 | H40: 372 | I40: 74.4 | J40: 44.6 | K40: 75.0 | L40: 参加我院招生宣传，根据协议直接预录取
A41: 40 | B41: 114140113152156 | C41: 胡钰滢 | D41: 77.0 | E41: 77.6 | F41: =D41*40%+E41*60% -> 77.4 | G41: 30.9 | H41: 366 | I41: 73.2 | J41: 43.9 | K41: 74.9
A42: 41 | B42: 114140113162203 | C42: 陶爱宇 | D42: 73.0 | E42: 76.2 | F42: 74.9 | G42: 30.0 | H42: 369 | I42: 73.8 | J42: 44.3 | K42: 74.2
A43: 42 | B43: 114140113152157 | C43: 王鹤霏 | D43: 65.0 | E43: 77.2 | F43: 72.3 | G43: 28.9 | H43: 376 | I43: 75.2 | J43: 45.1 | K43: 74.0
A44: 43 | B44: 114140113182225 | C44: 刘可心 | D44: 65.0 | E44: 77.2 | F44: 72.3 | G44: 28.9 | H44: 376 | I44: 75.2 | J44: 45.1 | K44: 74.0
A45: 44 | B45: 114140121402645 | C45: 丁晰 | D45: 62.0 | E45: 80.4 | F45: 73.0 | G45: 29.2 | H45: 373 | I45: 74.6 | J45: 44.8 | K45: 74.0
A46: 45 | B46: 114140113142133 | C46: 郭慧芳 | D46: 65.0 | E46: 74.8 | F46: 70.9 | G46: 28.4 | H46: 377 | I46: 75.4 | J46: 45.2 | K46: 73.6
A47: 46 | B47: 114140113062008 | C47: 潘阳 | D47: 74.0 | E47: 77.0 | F47: 75.8 | G47: 30.3 | H47: 360 | I47: 72.0 | J47: 43.2 | K47: 73.5
A48: 47 | B48: 114140137073479 | C48: 杨庆龄 | D48: 52.0 | E48: 76 | F48: 66.4 | G48: 26.6 | H48: 386 | I48: 77.2 | J48: 46.3 | K48: 72.9
A49: 48 | B49: 114140137013108 | C49: 张珂 | D49: 74.0 | E49: 71.4 | F49: 72.4 | G49: 29.0 | H49: 363 | I49: 72.6 | J49: 43.6 | K49: 72.5
A50: 49 | B50: 114140134012998 | C50: 林紫燕 | D50: 58.0 | E50: 77.6 | F50: 69.8 | G50: 27.9 | H50: 371 | I50: 74.2 | J50: 44.5 | K50: 72.4
A51: 50 | B51: 114140121102472 | C51: 朱珊 | D51: 67.0 | E51: 77.4 | F51: 73.2 | G51: 29.3 | H51: 355 | I51: 71.0 | J51: 42.6 | K51: 71.9
A52: 51 | B52: 114140132152927 | C52: 许少慧 | D52: 60.0 | E52: 76.6 | F52: 70.0 | G52: 28.0 | H52: 365 | I52: 73.0 | J52: 43.8 | K52: 71.8
A53: 52 | B53: 114140111641504 | C53: 李汝倍 | D53: 80.0 | E53: 67.2 | F53: 72.3 | G53: 28.9 | H53: 355 | I53: 71.0 | J53: 42.6 | K53: 71.5
A54: 53 | B54: 114140113102075 | C54: 郑玉媛 | D54: 59.0 | E54: 71.4 | F54: 66.4 | G54: 26.6 | H54: 359 | I54: 71.8 | J54: 43.1 | K54: 69.7
A55: 54 | B55: 114140141143866 | C55: 孙永亮 | D55: 60.0 | E55: 70.8 | F55: 66.5 | G55: 26.6 | H55: 358 | I55: 71.6 | J55: 43.0 | K55: 69.6
A56: 55 | B56: 114140111641507 | C56: 王丽 | D56: 52.0 | E56: 63.6 | F56: 59.0 | G56: 23.6 | H56: 357 | I56: 71.4 | J56: 42.8 | K56: 66.4

Sheet 汉语国际教育
A1: 序号 | B1: 考生编号 | C1: 姓名 | D1: 笔试成绩 | E1: 专业面试成绩 | F1: 外语面试成绩 | G1: 复试总成绩百分制 | H1: 复试成绩百分制*40% | I1: 初试成绩 | J1: 初试成绩百分制 | K1: 初试成绩百分制*60% | L1: 总成绩 | M1: 备注
A2: 1 | B2: 114140113182224 | C2: 康萌萌 | D2: 80.0 | E2: 91.8 | F2: 90.6 | G2: =D2*30%+E2*40%+F2*30% -> 87.9 | H2: =G2*40% -> 35.2 | I2: 384.0 | J2: =I2/5 -> 76.8 | K2: =J2*60% -> 46.1 | L2: =H2+K2 -> 81.2
A3: 2 | B3: 114140113051982 | C3: 侯晓宇 | D3: 90.0 | E3: 89.0 | F3: 85.4 | G3: 88.2 | H3: 35.3 | I3: 380.0 | J3: 76.0 | K3: 45.6 | L3: 80.9 | M3: “赴外汉语教师志愿者”项目服务期满、考核合格的考生，3年内参加全国硕士研究生招生考试的，初试总分加10分，
A4: 3 | B4: 114140114162342 | C4: 黄佳蓉 | D4: 87.0 | E4: 89.8 | F4: 83.2 | G4: 87.0 | H4: 34.8 | I4: 373.0 | J4: 74.6 | K4: 44.8 | L4: 79.6
A5: 4 | B5: 114140113102072 | C5: 都超群 | D5: 85.0 | E5: 92.2 | F5: 92.0 | G5: 90.0 | H5: 36.0 | I5: 362.0 | J5: 72.4 | K5: 43.4 | L5: 79.4
A6: 5 | B6: 114140137033326 | C6: 范鲁渝 | D6: 81.0 | E6: 88.2 | F6: 83.8 | G6: 84.7 | H6: 33.9 | I6: 374.0 | J6: 74.8 | K6: 44.9 | L6: 78.8
A7: 6 | B7: 114140114062277 | C7: 吉策 | D7: 86.0 | E7: 81.0 | F7: 80.4 | G7: 82.3 | H7: 32.9 | I7: 379.0 | J7: 75.8 | K7: 45.5 | L7: 78.4
A8: 7 | B8: 114140113102071 | C8: 邓亚昆 | D8: 79.0 | E8: 85.0 | F8: 86 | G8: 83.5 | H8: 33.4 | I8: 375.0 | J8: 75.0 | K8: 45.0 | L8: 78.4 | M8: “赴外汉语教师志愿者”项目服务期满、考核合格的考生，3年内参加全国硕士研究生招生考试的，初试总分加10分，
A9: 8 | B9: 114140151134432 | C9: 刘思雨 | D9: 72.0 | E9: 86.4 | F9: 84.6 | G9: 81.5 | H9: 32.6 | I9: 381.0 | J9: 76.2 | K9: 45.7 | L9: 78.3
A10: 9 | B10: 114140154014530 | C10: 周睿涵 | D10: 82.0 | E10: 85.6 | F10: 91.2 | G10: 86.2 | H10: 34.5 | I10: 363.0 | J10: 72.6 | K10: 43.6 | L10: 78.0
A11: 10 | B11: 114140137013106 | C11: 赵雪 | D11: 84.0 | E11: 83.0 | F11: 79.0 | G11: 82.1 | H11: 32.8 | I11: 375.0 | J11: 75.0 | K11: 45.0 | L11: 77.8
A12: 11 | B12: 114140131132900 | C12: 赵晨辰 | D12: 81.0 | E12: 80.8 | F12: 82.6 | G12: 81.4 | H12: 32.6 | I12: 377.0 | J12: 75.4 | K12: 45.2 | L12: 77.8
A13: 12 | B13: 114140142384190 | C13: 曹小汐 | D13: 87.0 | E13: 88.0 | F13: 83 | G13: 86.2 | H13: 34.5 | I13: 358.0 | J13: 71.6 | K13: 43.0 | L13: 77.4
A14: 13 | B14: 114140123222880 | C14: 聂笑寒 | D14: 82.0 | E14: 90.0 | F14: 90.2 | G14: 87.7 | H14: 35.1 | I14: 351.0 | J14: 70.2 | K14: 42.1 | L14: 77.2
A15: 14 | B15: 114140141554016 | C15: 赵雪迎 | D15: 77.0 | E15: 86.2 | F15: 85.6 | G15: 83.3 | H15: 33.3 | I15: 364.0 | J15: 72.8 | K15: 43.7 | L15: 77.0
A16: 15 | B16: 114140137073476 | C16: 刘心语 | D16: 87.0 | E16: 89.6 | F16: 93.0 | G16: 89.8 | H16: 35.9 | I16: 341.0 | J16: 68.2 | K16: 40.9 | L16: 76.9
A17: 16 | B17: 114140112461843 | C17: 刘旭 | D17: 77.0 | E17: 89.2 | F17: 86.2 | G17: 84.6 | H17: 33.9 | I17: 358.0 | J17: 71.6 | K17: 42.96 | L17: 76.8
A18: 17 | B18: 114140114092295 | C18: 杜育嘉 | D18: 86.0 | E18: 88.4 | F18: 89.8 | G18: 88.1 | H18: 35.2 | I18: 346.0 | J18: 69.2 | K18: 41.5 | L18: 76.8
A19: 18 | B19: 114140115042404 | C19: 伊敏 | D19: 77.0 | E19: 83.4 | F19: 79.4 | G19: 80.3 | H19: 32.1 | I19: 372.0 | J19: 74.4 | K19: 44.6 | L19: 76.8
A20: 19 | B20: 114140137143650 | C20: 刘璐 | D20: 78.0 | E20: 88.6 | F20: 90.4 | G20: 86.0 | H20: 34.4 | I20: 353.0 | J20: 70.6 | K20: 42.4 | L20: 76.7
A21: 20 | B21: 114140111641073 | C21: 颜伟嘉 | D21: 83.0 | E21: 85.0 | F21: 90.8 | G21: 86.1 | H21: 34.5 | I21: 348.0 | J21: 69.6 | K21: 41.8 | L21: 76.2
A22: 21 | B22: 114140151064338 | C22: 陈艳 | D22: 68.0 | E22: 81.2 | F22: 81.4 | G22: 77.3 | H22: 30.9 | I22: 377.0 | J22: 75.4 | K22: 45.2 | L22: 76.2
A23: 22 | B23: 114140141153880 | C23: 郑伟琦 | D23: 79.0 | E23: 89.2 | F23: 88.8 | G23: 86.0 | H23: 34.4 | I23: 346.0 | J23: 69.2 | K23: 41.5 | L23: 75.9
A24: 23 | B24: 114140137063412 | C24: 于旭阳 | D24: 85.0 | E24: 86.0 | F24: 85.4 | G24: 85.5 | H24: 34.2 | I24: 347.0 | J24: 69.4 | K24: 41.6 | L24: 75.8
A25: 24 | B25: 114140132112911 | C25: 刘敏 | D25: 78.0 | E25: 85.2 | F25: 86.8 | G25: 83.5 | H25: 33.4 | I25: 351.0 | J25: 70.2 | K25: 42.1 | L25: 75.5
A26: 25 | B26: 114140115372441 | C26: 刘鑫堂 | D26: 86.0 | E26: 82.6 | F26: 78.0 | G26: 82.2 | H26: 32.9 | I26: 351.0 | J26: 70.2 | K26: 42.1 | L26: 75.0
A27: 26 | B27: 114140141013758 | C27: 陈晨 | D27: 82.0 | E27: 84.4 | F27: 78.0 | G27: 81.8 | H27: 32.7 | I27: 352.0 | J27: 70.4 | K27: 42.2 | L27: 74.9
A28: 27 | B28: 114140141113852 | C28: 李草 | D28: 75.0 | E28: 81.8 | F28: 80.2 | G28: 79.3 | H28: 31.7 | I28: 360.0 | J28: 72.0 | K28: 43.2 | L28: 74.9
A29: 28 | B29: 114140141303927 | C29: 耿柳莹 | D29: 88.0 | E29: 80.8 | F29: 76.0 | G29: 81.5 | H29: 32.6 | I29: 340.0 | J29: 68.0 | K29: 40.8 | L29: 73.4
A30: 29 | B30: 114140113072025 | C30: 李飞 | D30: 74.0 | E30: 84.6 | F30: 82.2 | G30: 80.7 | H30: 32.3 | I30: 338.0 | J30: 67.6 | K30: 40.6 | L30: 72.8
A31: 30 | B31: 114140111641474 | C31: 杨哲 | G31: 76.0 | H31: 30.4 | I31: 344.0 | J31: 68.8 | K31: 41.3 | L31: 71.7 | M31: 参加我院招生宣传，根据协议直接预录取
A32: 31 | B32: 114140141524013 | C32: 黄华芳 | D32: 75.0 | E32: 76.2 | F32: 72.0 | G32: =D32*30%+E32*40%+F32*30% -> 74.6 | H32: 29.8 | I32: 345.0 | J32: 69.0 | K32: 41.4 | L32: 71.2
A33: 32 | B33: 114140111641491 | C33: 王琪 | G33: 76.0 | H33: 30.4 | I33: 337.0 | J33: 67.4 | K33: 40.4 | L33: 70.8 | M33: 参加我院招生宣传，根据协议直接预录取
A34: 33 | B34: 114140111641002 | C34: 肖月 | G34: =D34*30%+E34*40%+F34*30% -> 0.0 | H34: 0.0 | I34: 337.0 | J34: 67.4 | K34: 40.4 | L34: 40.4 | M34: 放弃复试
A35: 34 | B35: 114140132112912 | C35: 许林琦 | G35: =D35*30%+E35*40%+F35*30% -> 0.0 | H35: 0.0 | I35: 334.0 | J35: 66.8 | K35: 40.1 | L35: 40.1 | M35: 放弃复试
